{"text_format":"1","workbook":"xlsx","n_sheets":3,"sheets":["Compte de dépense SEDR-CSQ","Feuil1","Valeurs"],"not_rendered":{"charts":0,"images":1,"macros":1,"external_links":0,"defined_names":77,"comments":0,"pivot_tables":0},"unopened":[],"bounds":{"document_bytes":16777216,"sheet_cells":100000,"rows_first":2000,"rows_last":500,"rows_between":2000,"halvings":0,"cell_chars":16384,"cell_head_chars":4096},"cells_cut":0,"cells_raw":0,"read":"whole","date_system":"1900"}

{"sheet":"Compte de dépense SEDR-CSQ","index":0,"n_rows":53,"n_cols":20,"rows_kept":53,"cut":false,"hidden":false,"merged":[[0,9,0,14],[0,5,4,8],[45,1,46,10],[45,11,46,11],[45,13,47,15],[12,10,12,11],[24,10,24,11],[34,5,34,6],[34,12,34,13],[35,2,35,11],[36,4,36,7],[38,1,42,9],[38,12,38,13],[39,12,39,13],[41,12,41,13],[44,11,44,13],[6,15,7,15],[22,5,22,6],[22,12,22,13],[23,2,23,11],[24,4,24,7],[14,1,18,9],[10,12,10,13],[17,12,17,13],[15,12,15,13],[14,12,14,13],[29,12,29,13],[28,10,28,11],[5,2,5,7],[6,2,6,6],[11,2,11,11],[10,5,10,6],[12,4,12,7],[8,5,8,6],[8,9,8,10],[26,1,30,9],[26,12,26,13],[27,12,27,13],[40,10,40,11],[20,5,20,6],[20,9,20,10],[10,9,10,10],[22,9,22,10],[16,10,16,11],[32,9,32,10],[36,10,36,11],[34,9,34,10],[32,5,32,6]]}
[null,null,null,null,null,"Syndicat de l'enseignement\ndes Deux Rives (SEDR-CSQ)\n8381, avenue Sous-le-Vent\nLévis, Québec, G6X 1K7\nTél. : 418-832-1449 / 1-800-463-3372\nTéléc. : 418-832-0229",null,null,null,"FORMULAIRE DE DÉPENSES"]
[]
[]
[]
[]
[null,"Nom :"]
[null,"Adresse :",null,null,null,null,null,"Code Postal :",null,null,null,null,null,null,null,"À l'usage\ndu bureau"]
[]
["A","Date :",{"$f":"TODAY()","v":"2019-10-25"},null,"De :",null,null,"hre","À :",null,null,"hre"]
[]
[null,"Déjeuner",null,null,"Dîner",null,null,"Souper",null,"Collation",null,null,"Repas :",null,{"$f":"Q11+R11+S11+T11","v":0},null,{"$f":"IF(Dejeuner_A <>\"\",Dejeuner,0)","v":0},{"$f":"IF(Diner_A <>\"\",Diner,0)","v":0},{"$f":"IF(Souper_A <>\"\",Souper,0)","v":0},{"$f":"IF(Lunch_A <>\"\",Lunxh,0)","v":0}]
[null,"Voyage De"]
[null,"Aller/Retour",null,"À",null,null,null,null,null,"Km","Covoiturage :",null,null,null,{"$f":"IF(C13<>\"\",IF(M13<>\"\",I13*Covoiturage,I13*KM)*2,IF(M13<>\"\",I13*Covoiturage,I13*KM))","v":0}]
[]
[null,null,null,null,null,null,null,null,null,null,null,null,"Stationnement :",null,0]
[null,null,null,null,null,null,null,null,null,null,null,null,"Logement :",null,0]
[null,null,null,null,null,null,null,null,null,null,"Nbr Heures :",null,null,"Garderie :",{"$f":"M17*Gardiennage","v":0}]
[null,null,null,null,null,null,null,null,null,null,null,null,"Divers :",null,0]
[]
[null,null,null,null,null,null,null,null,null,null,null,null,null,"TOTAL :",{"$f":"SUM(O11:O18)","v":0},0]
["B","Date :",{"$f":"TODAY()+1","v":"2019-10-26"},null,"De :",null,null,"hre","À :",null,null,"hre"]
[]
[null,"Déjeuner",null,null,"Dîner",null,null,"Souper",null,"Collation",null,null,"Repas :",null,{"$f":"Q23+R23+S23+T23","v":0},null,{"$f":"IF(C23<>\"\",Dejeuner,0)","v":0},{"$f":"IF(F23<>\"\",Diner,0)","v":0},{"$f":"IF(I23<>\"\",Souper,0)","v":0},{"$f":"IF(L23<>\"\",Lunxh,0)","v":0}]
[null,"Voyage De"]
[null,"Aller/Retour",null,"À",null,null,null,null,null,"Km","Covoiturage :",null,null,null,{"$f":"IF(C25<>\"\",IF(M25<>\"\",I25*Covoiturage,I25*KM)*2,IF(M25<>\"\",I25*Covoiturage,I25*KM))","v":0}]
[]
[null,null,null,null,null,null,null,null,null,null,null,null,"Stationnement :",null,0]
[null,null,null,null,null,null,null,null,null,null,null,null,"Logement :",null,0]
[null,null,null,null,null,null,null,null,null,null,"Nbr Heures :",null,null,"Garderie :",{"$f":"M29*Gardiennage","v":0}]
[null,null,null,null,null,null,null,null,null,null,null,null,"Divers :",null,0]
[]
[null,null,null,null,null,null,null,null,null,null,null,null,null,"TOTAL :",{"$f":"SUM(O23:O30)","v":0},0]
["C","Date :",{"$f":"TODAY()+2","v":"2019-10-27"},null,"De :",null,null,"hre","À :",null,null,"hre"]
[]
[null,"Déjeuner",null,null,"Dîner",null,null,"Souper",null,"Collation",null,null,"Repas :",null,{"$f":"Q35+R35+S35+T35","v":0},null,{"$f":"IF(C35<>\"\",Dejeuner,0)","v":0},{"$f":"IF(F35<>\"\",Diner,0)","v":0},{"$f":"IF(I35<>\"\",Souper,0)","v":0},{"$f":"IF(L35<>\"\",Lunxh,0)","v":0}]
[null,"Voyage De"]
[null,"Aller/Retour",null,"À",null,null,null,null,null,"Km","Covoiturage :",null,null,null,{"$f":"IF(C37<>\"\",IF(M37<>\"\",I37*Covoiturage,I37*KM)*2,IF(M37<>\"\",I37*Covoiturage,I37*KM))","v":0}]
[]
[null,null,null,null,null,null,null,null,null,null,null,null,"Stationnement :",null,0]
[null,null,null,null,null,null,null,null,null,null,null,null,"Logement :",null,0]
[null,null,null,null,null,null,null,null,null,null,"Nbr Heures :",null,null,"Garderies :",{"$f":"M41*Gardiennage","v":0}]
[null,null,null,null,null,null,null,null,null,null,null,null,"Divers :",null,0]
[]
[null,null,null,null,null,null,null,null,null,null,null,null,null,"TOTAL :",{"$f":"SUM(O35:O42)","v":0},0]
[null,null,null,null,null,null,null,null,null,null,null,"TOTAL de A + B + C :",null,null,{"$f":"O20+O32+O44","v":0},0]
[null,"J'atteste que les informations présentées dans ce formulaire sont exactes, complètes et conformes à la réalité (cocher la case ci-contre)"]
[]
[]
[]
[]
[]
[]
[null,"N'oubliez pas de cocher la case et de retourner par courriel à la secrétaire-trésorière à l'adresse manon1@sedrcsq.org "]

{"sheet":"Feuil1","index":1,"n_rows":0,"n_cols":0,"rows_kept":0,"cut":false,"hidden":false,"merged":[]}

{"sheet":"Valeurs","index":2,"n_rows":14,"n_cols":5,"rows_kept":14,"cut":false,"hidden":true,"merged":[]}
["05:00:00",null,"2018-01-01",null,0]
["23:59:00",null,"2030-12-31",null,1000]
[]
[]
[]
["Dejeuner",17]
["Diner",26]
["Souper",32.5]
["Lunch",5]
[]
["Gariennage",7]
[]
["KM Seul",0.53]
["KM Covoiturage",{"$f":"B13+0.1","v":0.63}]